bitfinex/quotes_BTCUSD_20230118
["timestamp","ask_amount","ask_price","bid_price","bid_amount"]
[1674009237400,3.42048899,21211.0,21210.0,0.00982397]
[1674009237686,3.0849031,21211.0,21210.0,0.00982397]
[1674009237967,3.41997257,21211.0,21210.0,0.00982397]
[1674009238695,3.71997257,21211.0,21210.0,0.00982397]
[1674009239170,3.88352477,21211.0,21210.0,0.00982397]
[1674009239697,3.62576365,21211.0,21210.0,0.00982397]
[1674009239939,3.91306365,21211.0,21210.0,0.00982397]
[1674009240195,4.09721665,21211.0,21210.0,0.00982397]
[1674009240456,4.20986815,21211.0,21210.0,0.00982397]
[1674009240721,4.4315491,21211.0,21210.0,0.00982397]
[1674009240954,4.60052657,21211.0,21210.0,0.00982397]
[1674009241732,4.4315491,21211.0,21210.0,0.00982397]
[1674009241984,4.92359523,21211.0,21210.0,0.00982397]
[1674009242247,4.81094373,21211.0,21210.0,0.00982397]
[1674009242519,4.95002657,21211.0,21210.0,0.00982397]
[1674009242788,4.71293781,21211.0,21210.0,0.00982397]
[1674009243320,4.96860776,21211.0,21210.0,0.00982397]
[1674009243558,4.85595626,21211.0,21210.0,0.00982397]
[1674009243814,4.96860776,21211.0,21210.0,0.00982397]
[1674009244080,4.85595626,21211.0,21210.0,0.00982397]
[1674009244392,5.09171626,21211.0,21210.0,0.00982397]
[1674009244630,4.28243531,21211.0,21210.0,0.00982397]
[1674009244882,3.88312311,21211.0,21210.0,0.00982397]
[1674009246711,4.18312311,21211.0,21210.0,0.00982397]
[1674009249789,4.41885311,21211.0,21210.0,0.00982397]
[1674009250298,3.54805364,21211.0,21210.0,0.00982397]
[1674009250933,3.38875364,21211.0,21210.0,0.00982397]
[1674009251311,3.7502472,21211.0,21210.0,0.00982397]
[1674009251812,3.4287472,21211.0,21210.0,0.00982397]
[1674009252070,3.38875364,21211.0,21210.0,0.00982397]
[1674009252325,3.39725364,21211.0,21210.0,0.00982397]
[1674009252584,3.69725364,21211.0,21210.0,0.00982397]
[1674009253380,3.77285364,21211.0,21210.0,0.00982397]
[1674009253681,4.1727472,21211.0,21210.0,0.00982397]
[1674009254734,4.50733972,21211.0,21210.0,0.00982397]
[1674009256283,4.50733972,21211.0,21210.0,0.00973656]
[1674009257837,4.85573122,21211.0,21210.0,0.00743186]
[1674009258089,4.45583766,21211.0,21210.0,0.00743186]
[1674009260136,4.51216363,21211.0,21210.0,0.00743186]
[1674009260393,4.73785493,21211.0,21210.0,0.00743186]
[1674009260647,4.73784493,21211.0,21210.0,0.00743186]
[1674009260898,4.51215363,21211.0,21210.0,0.00743186]
[1674009261990,5.33250824,21211.0,21210.0,0.00743186]
[1674009262975,5.5581431,21211.0,21210.0,0.00743186]
[1674009263241,5.33250824,21211.0,21210.0,0.00743186]
[1674009263507,5.45017446,21211.0,21210.0,0.00743186]
[1674009263824,5.55814241,21211.0,21210.0,0.00743186]
[1674009264040,5.33250824,21211.0,21210.0,0.00743186]
[1674009265129,5.05039411,21211.0,21210.0,0.00743186]
[1674009268248,5.38818159,21211.0,21210.0,0.00743186]
[1674009268502,5.93788376,21211.0,21210.0,0.00743186]
[1674009269033,5.90389341,21211.0,21210.0,0.00743186]
[1674009269291,5.80620108,21211.0,21207.0,0.01649973]
[1674009269557,1.20285962,21208.0,21207.0,0.01649973]
[1674009269813,4.65209731,21208.0,21207.0,0.01649973]
[1674009270077,4.66281858,21208.0,21207.0,0.01649973]
[1674009270413,4.66280858,21208.0,21207.0,0.01649973]
[1674009270648,4.75780858,21208.0,21207.0,0.01649973]
[1674009271688,4.66280858,21208.0,21207.0,0.01649973]
[1674009271934,5.57041794,21208.0,21207.0,0.01649973]
[1674009272189,4.99611075,21208.0,21207.0,0.01649973]
[1674009272456,5.44320463,21208.0,21207.0,0.01649973]
[1674009272978,5.16038456,21208.0,21207.0,0.01649973]
[1674009273244,5.16096653,21208.0,21207.0,0.01649973]
[1674009274608,0.15,21207.0,21196.0,1.37795465]
[1674009274835,0.11283027,21204.0,21198.0,0.425832]
[1674009275110,2.40433264,21203.0,21200.0,0.00353771]
[1674009275380,0.4715,21202.0,21200.0,0.00353771]
[1674009275644,1.27335,21201.0,21200.0,0.00353771]
[1674009275917,0.95185,21201.0,21200.0,0.00353771]
[1674009277895,0.95785,21201.0,21200.0,0.00353771]
[1674009278196,1.86629974,21201.0,21196.0,0.17425665]
[1674009278461,0.75908157,21199.0,21196.0,0.06135758]
[1674009278696,2.51740559,21198.0,21196.0,0.06135758]
[1674009278946,0.79870169,21197.0,21196.0,0.06135758]
[1674009279201,1.75072969,21197.0,21196.0,0.06135758]
[1674009279480,2.36409393,21197.0,21196.0,0.06135758]
[1674009279741,2.43660969,21197.0,21196.0,0.06135758]
[1674009279990,2.93296494,21197.0,21196.0,0.06135758]
[1674009281020,3.02796494,21197.0,21196.0,0.06135758]
[1674009281262,3.40544918,21197.0,21196.0,0.06135758]
[1674009281537,3.86911246,21197.0,21196.0,0.06135758]
[1674009282591,3.84395295,21197.0,21196.0,0.06135758]
[1674009283403,3.74895295,21197.0,21196.0,0.06135758]
[1674009283655,2.2421074,21197.0,21196.0,0.06135758]
[1674009284166,2.1471074,21197.0,21196.0,0.06135758]
[1674009284436,2.4779874,21197.0,21196.0,0.06135758]
[1674009284712,2.76047164,21197.0,21196.0,0.06135758]
[1674009284967,3.3120424,21197.0,21196.0,0.06135758]
[1674009285219,3.13537164,21197.0,21196.0,0.06135758]
[1674009285470,3.23037164,21197.0,21196.0,0.06135758]
[1674009285728,2.8528874,21197.0,21196.0,0.06135758]
[1674009286275,2.5220074,21197.0,21196.0,0.06135758]
[1674009286512,2.5421074,21197.0,21196.0,0.06135758]
[1674009286776,2.89245954,21197.0,21196.0,0.06135758]
[1674009287035,2.5421074,21197.0,21196.0,0.06135758]
[1674009287324,2.7779974,21197.0,21196.0,0.06135758]
[1674009287563,2.2421074,21197.0,21196.0,0.06135758]
[1674009289324,1.9206074,21197.0,21196.0,0.06135758]
[1674009289923,2.2421074,21197.0,21196.0,0.06135758]
[1674009290092,1.9206074,21197.0,21196.0,0.06135758]
[1674009290342,2.33327975,21197.0,21196.0,0.06135758]
[1674009290586,2.39877975,21197.0,21196.0,0.06135758]
[1674009290844,2.33327975,21197.0,21196.0,0.06135758]
[1674009291103,2.72027975,21197.0,21196.0,0.06135758]
[1674009291366,2.42027975,21197.0,21196.0,0.06135758]
[1674009291599,2.1471074,21197.0,21196.0,0.06135758]
[1674009292137,2.6830074,21197.0,21196.0,0.06135758]
[1674009292883,2.1471074,21197.0,21196.0,0.06135758]
[1674009293133,2.2341074,21197.0,21196.0,0.06135758]
[1674009293385,2.1471074,21197.0,21196.0,0.06135758]
[1674009293660,2.2341074,21197.0,21196.0,0.06135758]
[1674009293950,2.1471074,21197.0,21196.0,0.06135758]
[1674009294152,2.2341074,21197.0,21196.0,0.06135758]
[1674009294416,2.1471074,21197.0,21196.0,0.06135758]
[1674009294675,2.2341074,21197.0,21196.0,0.06135758]
[1674009294946,2.1471074,21197.0,21196.0,0.06135758]
[1674009295193,2.2341074,21197.0,21196.0,0.06135758]
[1674009295448,2.1471074,21197.0,21196.0,0.06135758]
[1674009295710,2.2341074,21197.0,21196.0,0.06135758]
[1674009295958,2.4471074,21197.0,21196.0,0.06135758]
[1674009296252,2.5341074,21197.0,21196.0,0.06135758]
[1674009296487,2.4471074,21197.0,21196.0,0.06135758]
[1674009296738,2.5341074,21197.0,21196.0,0.06135758]
[1674009296985,2.82601354,21197.0,21196.0,0.06135758]
[1674009297583,2.52601354,21197.0,21196.0,0.06135758]
[1674009297763,2.82601354,21197.0,21196.0,0.06135758]
[1674009298006,2.91301354,21197.0,21196.0,0.06135758]
[1674009298258,2.1471074,21197.0,21196.0,0.06135758]
[1674009298509,1.9126074,21197.0,21196.0,0.06135758]
[1674009299032,2.2341074,21197.0,21196.0,0.06135758]
[1674009300309,1.9126074,21197.0,21196.0,0.06135758]
[1674009300547,2.2341074,21197.0,21196.0,0.06135758]
[1674009300798,1.9126074,21197.0,21196.0,0.06135758]
[1674009302099,2.2341074,21197.0,21196.0,0.06135758]
[1674009302361,1.9126074,21197.0,21196.0,0.06135758]
[1674009302662,2.2341074,21197.0,21196.0,0.06124425]
[1674009303169,1.9126074,21197.0,21196.0,0.06124425]
[1674009303421,2.2341074,21197.0,21196.0,0.06124425]
[1674009303674,1.9126074,21197.0,21196.0,0.06124425]
[1674009304188,1.51622969,21197.0,21196.0,0.06124425]
[1674009305274,1.66622969,21197.0,21196.0,0.06124425]
[1674009305742,1.51622969,21197.0,21196.0,0.06124425]
[1674009306793,1.91334279,21197.0,21196.0,0.06124425]
[1674009307057,2.7754956,21197.0,21196.0,0.06124425]
[1674009307862,3.26631376,21197.0,21196.0,0.06124425]
[1674009308116,3.43544169,21197.0,21196.0,0.06124425]
[1674009308872,3.32268974,21197.0,21196.0,0.06124425]
[1674009309454,3.54819365,21197.0,21196.0,0.04121473]
[1674009309757,2.64805842,21197.0,21196.0,0.04121473]
[1674009310005,2.34805842,21197.0,21196.0,0.04121473]
[1674009310291,2.64805842,21197.0,21196.0,0.04121473]
[1674009311108,2.34805842,21197.0,21196.0,0.04121473]
[1674009311335,2.64805842,21197.0,21196.0,0.04121473]
[1674009312389,3.59202392,21197.0,21196.0,0.04121473]
[1674009312653,4.36696696,21197.0,21196.0,0.04121473]
[1674009313031,4.21539508,21197.0,21196.0,0.04121473]
[1674009313208,4.49090368,21197.0,21196.0,0.04121473]
[1674009313464,4.49052842,21197.0,21196.0,0.04121473]
[1674009313737,4.20882801,21197.0,21196.0,0.04121473]
[1674009313995,4.49062475,21197.0,21196.0,0.04121473]
[1674009315593,3.90417326,21197.0,21196.0,0.04121473]
[1674009315799,4.05623776,21197.0,21196.0,0.04121473]
[1674009316053,3.53844903,21197.0,21196.0,0.04121473]
[1674009316307,2.68888127,21197.0,21196.0,0.04121473]
[1674009316823,3.21865458,21197.0,21196.0,0.04121473]
[1674009317107,3.04945559,21197.0,21196.0,0.04121473]
[1674009317309,3.48543122,21197.0,21196.0,0.04121473]
[1674009317562,3.63727318,21197.0,21196.0,0.04121473]
[1674009317819,4.21906992,21197.0,21196.0,0.04121473]
[1674009318121,3.71168093,21197.0,21196.0,0.04121473]
[1674009318348,4.08916517,21197.0,21196.0,0.04121473]
[1674009318847,4.42774241,21197.0,21196.0,0.04121473]
[1674009321146,4.08916517,21197.0,21196.0,0.04121473]
[1674009321973,4.42774241,21197.0,21196.0,0.04121473]
[1674009322192,4.08916517,21197.0,21196.0,0.04121473]
[1674009322436,3.66168954,21197.0,21196.0,0.04121473]
[1674009322691,3.2663928,21197.0,21196.0,0.04121473]
[1674009322950,2.9842053,21197.0,21196.0,0.04121473]
[1674009323453,3.50228867,21197.0,21196.0,0.04121473]
[1674009323698,3.59757954,21197.0,21196.0,0.04121473]
[1674009323945,3.99419747,21197.0,21196.0,0.04121473]
[1674009325507,4.27637001,21197.0,21196.0,0.04121473]
[1674009326053,3.99419747,21197.0,21196.0,0.04121473]
[1674009326307,3.75830747,21197.0,21196.0,0.04121473]
[1674009326566,4.04047106,21197.0,21196.0,0.04121473]
[1674009326820,3.56633079,21197.0,21196.0,0.04121473]
[1674009327064,3.49203495,21197.0,21196.0,0.04121473]
[1674009327334,3.0580675,21197.0,21196.0,0.04121473]
[1674009327584,3.49013875,21197.0,21196.0,0.04121473]
[1674009327832,4.20013092,21197.0,21196.0,0.04121473]
[1674009328867,4.20013395,21197.0,21196.0,0.04121473]
[1674009329121,4.20013395,21197.0,21196.0,0.03121473]
[1674009329383,3.49014178,21197.0,21196.0,0.03121473]
[1674009330151,1.68612728,21197.0,21196.0,0.03121473]
[1674009330405,1.91183447,21197.0,21196.0,0.03121473]
[1674009330926,2.34922835,21197.0,21196.0,0.03121473]
[1674009331178,3.05085007,21197.0,21196.0,0.03121473]
[1674009331489,3.13541666,21197.0,21196.0,0.03121473]
[1674009331740,3.48294186,21197.0,21196.0,0.03121473]
[1674009332001,3.20081607,21197.0,21196.0,0.03121473]
[1674009332275,3.05085007,21197.0,21196.0,0.03121473]
[1674009332838,2.55790352,21197.0,21196.0,0.03121473]
[1674009333099,2.12352199,21197.0,21196.0,0.03121473]
[1674009333603,2.17803685,21197.0,21196.0,0.03121473]
[1674009333893,2.2909159,21197.0,21196.0,0.03121473]
[1674009334930,2.12159945,21197.0,21196.0,0.03121473]
[1674009335957,1.57074455,21197.0,21196.0,0.03121473]
[1674009337307,2.17188176,21197.0,21196.0,0.03121473]
[1674009337589,2.71971531,21197.0,21196.0,0.03121473]
[1674009337841,2.45402635,21197.0,21196.0,0.03121473]
[1674009338093,2.22831916,21197.0,21196.0,0.03121473]
[1674009338594,2.34117732,21197.0,21196.0,0.03121473]
[1674009338874,2.22831916,21197.0,21196.0,0.03121473]
[1674009339107,2.45402635,21197.0,21196.0,0.03121473]
[1674009339344,2.22890113,21197.0,21196.0,0.03121473]
[1674009339602,2.34176069,21197.0,21196.0,0.03121473]
[1674009339847,2.22890113,21197.0,21196.0,0.03121473]
[1674009340621,2.3417591,21197.0,21196.0,0.03121473]
[1674009341133,2.45460832,21197.0,21196.0,0.03121473]
[1674009341646,2.77610832,21197.0,21196.0,0.03121473]
[1674009341895,2.45460832,21197.0,21196.0,0.03121473]
[1674009342153,4.02900844,21197.0,21196.0,0.03121473]
[1674009342408,4.12436719,21197.0,21196.0,0.03121473]
[1674009342933,3.74688295,21197.0,21196.0,0.03121473]
[1674009343433,4.02901037,21197.0,21196.0,0.03121473]
[1674009344686,3.74688295,21197.0,21196.0,0.03121473]
[1674009345485,4.12436719,21197.0,21196.0,0.03121473]
[1674009345737,3.74688295,21197.0,21196.0,0.03121473]
[1674009346481,4.02906764,21197.0,21196.0,0.03121473]
[1674009347274,3.74688295,21197.0,21196.0,0.03121473]
[1674009348231,3.44688295,21197.0,21196.0,0.03121473]
[1674009348500,3.35248782,21197.0,21196.0,0.03121473]
[1674009349037,3.65248782,21197.0,21196.0,0.03121473]
[1674009349535,3.33098782,21197.0,21196.0,0.03121473]
[1674009349802,3.35248782,21197.0,21196.0,0.03121473]
[1674009350064,3.57824429,21197.0,21196.0,0.03121473]
[1674009350590,3.25673972,21197.0,21196.0,0.03121473]
[1674009350848,3.57823972,21197.0,21196.0,0.03121473]
[1674009351103,3.03098782,21197.0,21196.0,0.03121473]
[1674009351356,1.96639686,21197.0,21196.0,0.03121473]
[1674009351667,1.85294597,21197.0,21196.0,0.03121473]
[1674009351866,1.68362696,21197.0,21196.0,0.03121473]
[1674009352876,1.85294597,21197.0,21196.0,0.03121473]
[1674009353162,1.68362696,21197.0,21196.0,0.0311058]
[1674009354967,1.68420893,21197.0,21196.0,0.0311058]
[1674009355765,1.57074455,21197.0,21196.0,0.0311058]
[1674009356001,0.62721655,21197.0,21196.0,0.0311058]
[1674009356292,0.14151486,21197.0,21196.0,0.0311058]
[1674009357523,0.14209683,21197.0,21196.0,0.0311058]
[1674009357783,0.06359683,21197.0,21196.0,0.0311058]
[1674009358050,0.14201486,21197.0,21196.0,0.0321058]
[1674009361841,0.14201486,21197.0,21196.0,1.26089165]
[1674009361842,0.13351486,21197.0,21196.0,1.26089165]
[1674009362105,0.13351486,21197.0,21196.0,1.1254798]
[1674009362610,0.13351486,21197.0,21196.0,1.2754798]
[1674009362865,0.13351486,21197.0,21196.0,1.1254798]
[1674009363137,0.13351486,21197.0,21196.0,1.2754798]
[1674009363409,0.13351486,21197.0,21196.0,1.1254798]
[1674009363631,0.14201486,21197.0,21196.0,1.5754798]
[1674009363924,0.14201486,21197.0,21196.0,1.2754798]
[1674009364175,0.14201486,21197.0,21196.0,1.1254798]
[1674009364521,0.14201486,21197.0,21196.0,1.2754798]
[1674009364783,0.14201486,21197.0,21196.0,1.5754798]
[1674009365061,0.14201486,21197.0,21196.0,1.1254798]
[1674009365329,0.14201486,21197.0,21196.0,1.0505798]
[1674009365330,0.14259683,21197.0,21196.0,1.0505798]
[1674009365583,0.14201486,21197.0,21196.0,1.0505798]
[1674009366094,0.14201486,21197.0,21196.0,0.5787928]
[1674009369898,0.14259683,21197.0,21196.0,0.5787928]
[1674009370164,0.14201486,21197.0,21196.0,0.5787928]
[1674009371432,0.14201486,21197.0,21196.0,1.0505798]
[1674009371972,0.14201486,21197.0,21196.0,1.1258798]
[1674009373460,0.14259683,21197.0,21196.0,1.1258798]
[1674009373675,0.14201486,21197.0,21196.0,0.5791928]
[1674009374748,0.14201486,21197.0,21196.0,1.0509798]
[1674009375258,0.14201486,21197.0,21196.0,1.1265798]
[1674009375561,0.14201486,21197.0,21196.0,1.2765798]
[1674009375793,0.14201486,21197.0,21196.0,1.5765798]
[1674009377563,0.14201486,21197.0,21196.0,1.1265798]
[1674009377822,0.14190721,21197.0,21196.0,1.1265798]
[1674009379621,0.14190721,21197.0,21196.0,1.4265798]
[1674009380410,0.14190721,21197.0,21196.0,1.5765798]
[1674009380967,0.14190721,21197.0,21196.0,1.4265798]
[1674009381729,0.14190721,21197.0,21196.0,1.5765798]
[1674009381975,0.14190721,21197.0,21196.0,1.4265798]
[1674009382236,0.14190721,21197.0,21196.0,1.5765798]
[1674009382552,0.14190721,21197.0,21196.0,1.4265798]
[1674009383027,0.14190721,21197.0,21196.0,1.5765798]
[1674009383275,0.14190721,21197.0,21196.0,1.4265798]
[1674009383527,0.14190721,21197.0,21196.0,1.1265798]
[1674009384530,0.14190721,21197.0,21196.0,1.4265798]
[1674009387928,0.14190721,21197.0,21196.0,1.5765798]
[1674009389202,0.14190721,21197.0,21196.0,1.4265798]
[1674009391820,0.14190721,21197.0,21196.0,1.5765798]
[1674009392072,0.14190721,21197.0,21196.0,1.61387887]
[1674009392336,0.14190721,21197.0,21196.0,1.46387887]
[1674009392887,0.14190721,21197.0,21196.0,1.3799718]
[1674009393609,0.14190721,21197.0,21196.0,1.64287087]
[1674009393871,0.14190721,21197.0,21196.0,1.81221948]
[1674009394129,0.13340721,21197.0,21196.0,3.43952758]
[1674009394394,0.13340721,21197.0,21196.0,3.38297497]
[1674009394644,0.13340721,21197.0,21196.0,2.53491986]
[1674009394917,0.13340721,21197.0,21196.0,2.64787133]
[1674009395482,0.05440721,21197.0,21196.0,3.43773497]
[1674009395984,0.05440721,21197.0,21196.0,3.60715726]
[1674009396250,0.06140721,21197.0,21196.0,3.45673497]
[1674009396504,0.06140721,21197.0,21196.0,3.64516601]
[1674009396756,0.06840721,21197.0,21196.0,3.47573497]
[1674009397535,0.05440721,21197.0,21196.0,3.43773497]
[1674009397794,0.05440721,21197.0,21196.0,3.56998265]
[1674009398115,0.05440721,21197.0,21196.0,3.45719787]
[1674009398558,0.05440721,21197.0,21196.0,3.4571997]
[1674009398811,0.06140721,21197.0,21196.0,3.4761997]
[1674009399062,0.06140721,21197.0,21196.0,2.51592393]
[1674009399314,0.05440721,21197.0,21196.0,2.4969242]
[1674009399585,0.05440721,21197.0,21196.0,2.38394492]
[1674009399830,0.05440721,21197.0,21196.0,3.46865902]
[1674009399831,0.06140721,21197.0,21196.0,3.46865902]
[1674009400092,0.06140721,21197.0,21196.0,3.58144197]
[1674009400630,0.0543449,21197.0,21196.0,3.28019429]
[1674009401383,0.0613449,21197.0,21196.0,3.46868747]
[1674009401629,0.0613449,21197.0,21196.0,3.24288932]
[1674009401910,0.0613449,21197.0,21196.0,2.40297337]
[1674009402173,0.0613449,21197.0,21196.0,2.32767337]
[1674009402444,0.0613449,21197.0,21196.0,3.17519288]
[1674009402703,0.0613449,21197.0,21196.0,2.02767337]
[1674009402961,0.25265282,21197.0,21196.0,1.57970437]
[1674009403223,0.07042687,21197.0,21196.0,0.9193176]
[1674009403747,0.0698449,21197.0,21196.0,0.9193176]
[1674009404009,0.0698449,21197.0,21196.0,0.0600978]
[1674009404010,0.06342687,21197.0,21196.0,0.0600978]
[1674009404274,0.06342687,21197.0,21196.0,0.0770978]
[1674009404275,0.07042687,21197.0,21196.0,0.0770978]
[1674009404783,0.07742687,21197.0,21196.0,0.0940978]
[1674009406091,0.07742687,21197.0,21196.0,0.0840978]
[1674009407382,0.0768449,21197.0,21196.0,0.0840978]
[1674009408638,0.09884491,21197.0,21196.0,0.0840978]
[1674009411005,0.09942688,21197.0,21196.0,0.0840978]
[1674009411751,0.17502688,21197.0,21196.0,0.0840978]
[1674009412005,0.49652688,21197.0,21196.0,0.0840978]
[1674009412303,2.68974583,21197.0,21196.0,0.0840978]
[1674009412528,2.19937918,21197.0,21196.0,0.0840978]
[1674009412826,2.12377918,21197.0,21196.0,0.0840978]
[1674009413100,1.91725657,21197.0,21196.0,0.0840978]
[1674009413355,1.90325657,21197.0,21196.0,0.0500978]
[1674009413667,1.98025657,21197.0,21196.0,0.0510978]
[1674009413946,0.40692688,21197.0,21196.0,0.0500978]
[1674009414205,0.08484491,21197.0,21196.0,0.5218848]
[1674009414486,0.16184491,21197.0,21196.0,0.5228848]
[1674009415042,0.21084491,21197.0,21196.0,0.5248848]
[1674009415566,0.08484491,21197.0,21196.0,0.5218848]
[1674009415827,0.13384491,21197.0,21196.0,0.5238848]
[1674009416090,0.08484491,21197.0,21196.0,0.5218848]
[1674009416343,0.08884491,21197.0,21196.0,0.5348848]
[1674009416648,0.08884491,21197.0,21196.0,1.0066718]
[1674009417187,0.08884491,21197.0,21196.0,0.5348848]
[1674009417471,0.08484491,21197.0,21196.0,0.0500978]
[1674009417751,0.08484491,21197.0,21196.0,0.5348848]
[1674009417982,0.08484491,21197.0,21196.0,0.5218848]
[1674009418809,0.08542688,21197.0,21196.0,0.0500978]
[1674009419034,0.08942688,21197.0,21196.0,0.0630978]
[1674009419599,0.09342688,21197.0,21196.0,0.0760978]
[1674009421619,0.09284491,21197.0,21196.0,0.0760978]
[1674009422446,0.09342688,21197.0,21196.0,0.0760978]
[1674009422703,0.09284491,21197.0,21196.0,0.0760978]
[1674009424281,0.09342688,21197.0,21196.0,0.0760978]
[1674009426105,0.09284491,21197.0,21196.0,0.0760978]
[1674009427740,0.09284491,21197.0,21196.0,0.5478848]
[1674009428528,0.09284491,21197.0,21196.0,1.0196718]
[1674009429689,0.09284491,21197.0,21196.0,0.0760978]
[1674009429690,0.09342688,21197.0,21196.0,0.0760978]
[1674009431021,0.09284491,21197.0,21196.0,0.0760978]
[1674009431310,0.09342688,21197.0,21196.0,0.0760978]
[1674009432082,0.09284491,21197.0,21196.0,0.0760978]
[1674009433917,0.09342688,21197.0,21196.0,0.0760978]
[1674009434715,0.09284491,21197.0,21196.0,0.0760978]
[1674009437318,0.09284491,21197.0,21196.0,0.5478848]
[1674009437321,0.09284491,21197.0,21196.0,1.0196718]
[1674009437613,0.09277318,21197.0,21196.0,1.0196718]
[1674009437843,0.09277318,21197.0,21196.0,1.3196718]
[1674009438408,0.09277318,21197.0,21196.0,1.0196718]
[1674009438670,0.09277318,21197.0,21196.0,1.3196718]
[1674009439192,0.08427318,21197.0,21196.0,1.0196718]
[1674009439469,0.08427318,21197.0,21196.0,3.45263001]
[1674009439744,0.08427318,21197.0,21196.0,3.56538451]
[1674009440566,0.07627318,21197.0,21196.0,3.426557]
[1674009440816,0.08127318,21197.0,21196.0,3.46645925]
[1674009441095,0.08127318,21197.0,21196.0,3.42645925]
[1674009441359,0.08627318,21197.0,21196.0,3.46645925]
[1674009441640,0.07627318,21197.0,21196.0,1.52102418]
[1674009441906,0.07627318,21197.0,21196.0,1.82102418]
[1674009442162,0.07627318,21197.0,21196.0,1.99044435]
[1674009442725,0.07627318,21197.0,21196.0,1.82102418]
[1674009443529,0.08127318,21197.0,21196.0,1.86102418]
[1674009444306,0.08127318,21197.0,21196.0,2.41617182]
[1674009444567,0.08127318,21197.0,21196.0,2.03044435]
[1674009444867,0.08127318,21197.0,21196.0,1.86102418]
[1674009445329,0.08127318,21197.0,21196.0,1.44807315]
[1674009446917,0.08127318,21197.0,21196.0,1.91749332]
[1674009447167,0.08127318,21197.0,21196.0,2.30312473]
[1674009447459,0.08127318,21197.0,21196.0,3.38519001]
[1674009448286,0.24,21201.0,21197.0,0.19737396]
[1674009448545,0.0085,21200.0,21198.0,1.66350723]
[1674009448812,0.0085,21200.0,21199.0,0.42206038]
[1674009449088,0.0085,21200.0,21199.0,1.36550038]
[1674009449351,0.0085,21200.0,21199.0,1.66550038]
[1674009450743,0.0095,21200.0,21199.0,1.66550038]
[1674009451284,0.0135,21200.0,21199.0,1.70950038]
[1674009452588,0.005,21200.0,21199.0,2.04728176]
[1674009453358,0.005,21200.0,21199.0,2.12288176]
[1674009453627,0.005,21200.0,21199.0,2.67206616]
[1674009453886,0.005,21200.0,21199.0,2.29220383]
[1674009454143,0.005,21200.0,21199.0,2.12288176]
[1674009454960,0.005,21200.0,21199.0,1.93510038]
[1674009456829,0.005,21200.0,21199.0,2.04798176]
[1674009458155,0.005,21200.0,21199.0,1.93510038]
[1674009458648,0.005,21200.0,21199.0,1.78510038]
[1674009458907,0.005,21200.0,21199.0,1.93510038]
[1674009459736,0.005,21200.0,21199.0,1.78510038]
[1674009460193,0.005,21200.0,21199.0,1.93510038]
[1674009461530,0.19572595,21200.0,21199.0,0.98744]
[1674009461788,0.0135,21200.0,21199.0,0.98744]
[1674009462896,0.01408197,21200.0,21199.0,0.98744]
[1674009463160,0.01408197,21200.0,21199.0,0.51572]
[1674009463422,0.0135,21200.0,21199.0,0.51572]
[1674009464002,0.01408197,21200.0,21199.0,0.51572]
[1674009464295,0.0135,21200.0,21199.0,0.51572]
[1674009465124,0.01408197,21200.0,21199.0,0.51572]
[1674009465381,0.0135,21200.0,21199.0,0.51572]
[1674009466745,0.0135,21200.0,21199.0,0.044]
[1674009467523,0.0135,21200.0,21198.0,1.2831458]
[1674009467780,0.0085,21199.0,21198.0,1.2831458]
[1674009468816,0.008,21199.0,21198.0,1.2871458]
[1674009469103,0.0165,21199.0,21198.0,1.2871458]
[1674009471470,0.0165,21199.0,21198.0,1.5871458]
[1674009471755,0.0085,21199.0,21198.0,1.5831458]
[1674009472011,0.0085,21200.0,21198.0,1.2831458]
[1674009472300,0.008,21199.0,21198.0,1.2871458]
[1674009472542,0.0165,21199.0,21198.0,1.2871458]
[1674009473089,0.01708197,21199.0,21198.0,1.2871458]
[1674009473370,0.0165,21199.0,21198.0,1.2871458]
[1674009479545,0.0165,21199.0,21198.0,0.85069039]
[1674009479767,0.0165,21199.0,21198.0,0.004]
[1674009481083,0.0165,21199.0,21197.0,0.47176]
[1674009481084,0.0122,21198.0,21197.0,0.47176]
[1674009481336,0.50534171,21198.0,21196.0,0.0500978]
[1674009481600,0.49684171,21198.0,21196.0,0.0500978]
[1674009481871,0.11059,21197.0,21196.0,0.0500978]
[1674009483147,0.21207,21197.0,21196.0,0.0500978]
[1674009483963,0.22107,21197.0,21196.0,0.0500978]
[1674009484490,0.782834,21197.0,21196.0,0.0500978]
[1674009484751,2.57574043,21197.0,21196.0,0.0500978]
[1674009485224,2.5763224,21197.0,21196.0,0.0500978]
[1674009485485,2.5763224,21197.0,21196.0,0.0459978]
[1674009485754,2.98920481,21197.0,21196.0,0.0459978]
[1674009486013,3.88319375,21197.0,21196.0,0.0459978]
[1674009486291,3.77031134,21197.0,21196.0,0.0459978]
[1674009486524,3.88319375,21197.0,21196.0,0.0459978]
[1674009486782,3.94207534,21197.0,21196.0,0.0459978]
[1674009487034,3.47471608,21197.0,21196.0,0.0459978]
[1674009487295,3.77471608,21197.0,21196.0,0.0459978]
[1674009487553,3.88759849,21197.0,21196.0,0.0459978]
[1674009487842,4.12348849,21197.0,21196.0,0.0459978]
[1674009488085,4.59759066,21197.0,21196.0,0.0459978]
[1674009488343,4.38570825,21197.0,21196.0,0.0459978]
[1674009488599,4.47670825,21197.0,21196.0,0.0459978]
[1674009488858,4.38570825,21197.0,21196.0,0.0459978]
[1674009489651,4.47670825,21197.0,21196.0,0.0459978]
[1674009489907,4.14981825,21197.0,21196.0,0.0459978]
[1674009490252,4.24081825,21197.0,21196.0,0.0459978]
[1674009490511,4.14981825,21197.0,21196.0,0.0459978]
[1674009490775,4.24081825,21197.0,21196.0,0.0459978]
[1674009491036,4.14981825,21197.0,21196.0,0.0459978]
[1674009491615,4.24081825,21197.0,21196.0,0.0459978]
[1674009491886,4.14981825,21197.0,21196.0,0.0459978]
[1674009492935,4.24081825,21197.0,21196.0,0.0459978]
[1674009493193,3.94081825,21197.0,21196.0,0.0459978]
[1674009493459,4.24081825,21197.0,21196.0,0.0459978]
[1674009494258,4.18900937,21197.0,21196.0,0.0459978]
[1674009494537,4.18900937,21197.0,21196.0,0.02688646]
[1674009494793,3.92707098,21197.0,21196.0,0.02688646]
[1674009495067,4.58207355,21197.0,21196.0,0.02688646]
[1674009495332,4.38368999,21197.0,21196.0,0.02688646]
[1674009495921,4.73865907,21197.0,21196.0,0.02688646]
[1674009496179,4.85093062,21197.0,21196.0,0.02688646]
[1674009496445,4.68161161,21197.0,21196.0,0.02688646]
[1674009498157,4.21376012,21197.0,21196.0,0.02688646]
[1674009498397,4.84382658,21197.0,21196.0,0.02688646]
[1674009499058,4.73155503,21197.0,21196.0,0.02688646]
[1674009499281,4.8438487,21197.0,21196.0,0.02688646]
[1674009499965,4.8441487,21197.0,21196.0,0.02688646]
[1674009500184,4.73185503,21197.0,21196.0,0.02688646]
[1674009500406,4.38340589,21197.0,21196.0,0.02688646]
[1674009501027,4.69601659,21197.0,21196.0,0.02688646]
[1674009501302,0.0161627,21195.0,21190.0,0.02071772]
[1674009501561,0.47720169,21193.0,21190.0,0.02071772]
[1674009501836,0.1502,21191.0,21190.0,0.02071772]
[1674009502090,1.89249769,21191.0,21190.0,0.02071772]
[1674009502364,2.19249769,21191.0,21190.0,0.02071772]